Cogmind - Beta 13 @@@ ROGUE MODE // 2024.05.25 @ 04:42:43 Player: Feral_Cog Result: Destroyed by H-55 Commando with Gauss Rifle Performance ------------- Evolutions (2) 1000 Regions Visited (4) 800 Robots Destroyed (45) 225 Value Destroyed (737) 737 Prototype IDs (4) 80 Alien Tech Used (0) 0 Bonus (29) 29 TOTAL SCORE: 2871 Bonus ------- High Alert Combat Kills 29 Cogmind --------- Core Integrity 0/550 Matter 23/300 Energy 13/100 System Corruption 1% Temperature Cool (0) Movement Core (50) Location -8/Materials Parts ------- > --- POWER (1) -------- (None) > --- PROPULSION (4) --- (None) > --- UTILITY (4) ------ Advanced Weight Redist. System Advanced Visual Processing Unit > --- WEAPON (2) ------- (None) > --- INVENTORY (5) ---- Light Nuclear Core Cesium-ion Thruster ECM Suite System Shield Concussive RPG (1) Peak State ------------ > --- POWER ------------ Light Deuterium Engine > --- PROPULSION ------- Flight Unit Flight Unit Flight Unit Improved Flight Unit > --- UTILITY ---------- Advanced Visual Processing Unit Sensor Array Signal Interpreter Core Shielding > --- WEAPON ----------- Mini Grenade Launcher > --- INVENTORY -------- Weight Redist. System ECM Suite [Rating: 17] Favorites ----------- Power Light Ion Engine Engine Light Ion Engine Propulsion Flight Unit Wheel Compact Wheel Flight Unit Flight Unit Utility Sensor Array Device Sensor Array Storage Small Storage Unit Processor Signal Interpreter Protection Core Shielding Weapon Light Assault Rifle Ballistic Gun Light Assault Rifle Launcher Improved Grenade Launcher Build | -11 -10 -9 -9 -8 ------- Run | Yrd Mat Mat Min Mat Slots Evolved 4 | . . 2 . 2 Power . | . . . . . Propulsion 2 | . . 1 . 1 Utility 2 | . . 1 . 1 Weapon . | . . . . . Parts Attached 36 | 6 9 13 1 7 Power 3 | 1 1 . . 1 Engine 3 | 1 1 . . 1 Core . | . . . . . Reactor . | . . . . . Propulsion 14 | 2 3 6 . 3 Treads . | . . . . . Leg . | . . . . . Wheel 2 | 2 . . . . Hover . | . . . . . Flight 12 | . 3 6 . 3 Utility 9 | 1 2 3 . 3 Device 4 | . 1 2 . 1 Storage 1 | 1 . . . . Processor 3 | . 1 1 . 1 Hackware . | . . . . . Protection 1 | . . . . 1 Artifact . | . . . . . Weapon 10 | 2 3 4 1 . Energy Gun . | . . . . . Energy Cannon . | . . . . . Ballistic Gun 5 | 2 3 . . . Ballistic Cannon . | . . . . . Launcher 5 | . . 4 1 . Special Weapon . | . . . . . Impact Weapon . | . . . . . Slashing Weapon . | . . . . . Piercing Weapon . | . . . . . Special Melee Weapon . | . . . . . Unidentified Prototypes 1 | . . 1 . . Parts Lost 18 | . . 8 . 10 Power 2 | . . 1 . 1 Propulsion 8 | . . 3 . 5 Utility 3 | . . . . 3 Weapon 5 | . . 4 . 1 Highest Loss Streak 9 | . . 4 . 9 To Critical Strikes . | . . . . . Average Slot Usage (%) 71 | . 83 63 71 72 Engine 7 | . 14 3 . 6 Wheel 1 | . 6 . . . Flight 20 | . 21 16 33 24 Device 14 | . 5 22 22 7 Processor 10 | . 5 11 11 17 Protection 1 | . . . . 7 Ballistic Gun 9 | . 26 3 . . Launcher 4 | . . 6 5 8 Naked Turns . | . . . . . Heaviest Build 11 | 11 11 11 2 8 Greatest Support 26 | 26 26 14 5 17 Greatest Overweight (x) 2 | 1 2 2 . 1 Average Overweight (x) . | . . . . . Largest Inventory Capacity 8 | 8 8 5 5 5 Average Capacity 5 | 5 5 5 5 5 Most Carried 5 | 1 3 5 5 5 Average Carried 2 | . 1 2 4 3 Final Capacity 8 | 8 5 5 5 5 Final Carried 5 | . 3 5 4 5 Class Distribution -------------------- 47% | Mutant 41% | Scavenger-Mutant 10% | Scout Dominant Class ---------------- Scavenger-Mutant | -10/Materials Mutant | -9/Materials Mutant | -9/Mines Scout | -8/Materials Resources | -11 -10 -9 -9 -8 ----------- Run | Yrd Mat Mat Min Mat Matter Collected 710 | 203 187 309 8 3 Remotely . | . . . . . Salvage Created 467 | . 207 191 8 61 Parts 73 | . 21 30 2 20 Haulers Intercepted 1 | . 1 . . . Recyclers Shooed 2 | . 1 1 . . Parts Field Recycled . | . . . . . Retrieved Matter . | . . . . . Parts Self-Destructed . | . . . . . Prevented . | . . . . . Kills | -11 -10 -9 -9 -8 ------- Run | Yrd Mat Mat Min Mat Combat Hostiles Destroyed 28 | . 5 14 3 6 Guns 5 | . 5 . . . AOE 23 | . . 14 3 6 Classes Destroyed 10 | . 4 5 . 1 Worker 2 | . . 2 . . Hauler 1 | . 1 . . . Recycler 1 | . . 1 . . Mechanic 1 | . . 1 . . Operator 4 | . 1 1 . 2 Watcher 8 | . 2 4 . 2 Swarmer 22 | . 5 11 3 3 Cutter 3 | . . . . 3 Grunt 2 | . . 2 . . Sentry 1 | . . 1 . . Best Kill Streak 15 | . 3 15 3 5 Combat Bots Only 7 | . 3 7 3 3 Max Kills in Single Turn 3 | . 1 3 3 2 Gunslinging . | . . . . . Exploded 3 | . . 3 3 2 Melee . | . . . . . Uniques/NPCs Destroyed . | . . . . . Combat | -11 -10 -9 -9 -8 -------- Run | Yrd Mat Mat Min Mat Hostile Shots Fired 202 | . 28 83 . 91 Missed 85 | . 12 34 . 39 Damage Taken 1720 | . 129 704 6 881 Core 875 | . 26 291 6 552 Absorbed by Shields . | . . . . . Redirected to Shielding 51 | . . . . 51 Core Remaining (%) 71 | 100 89 . 25 . Volleys Fired 73 | . 35 26 1 11 Largest 2 | . 2 2 1 1 Hottest 53 | . 40 53 30 30 Shots Fired 115 | . 70 33 1 11 Gun 81 | . 70 11 . . Cannon . | . . . . . Launcher 34 | . . 22 1 11 Special . | . . . . . Kinetic 81 | . 70 11 . . Thermal . | . . . . . Explosive 34 | . . 22 1 11 Electromagnetic . | . . . . . Robot Hit Streak 7 | . 6 7 1 1 Robot Miss Streak 6 | . 6 5 . 2 Penetration Max . | . . . . . Secondary Targets 1 | . 1 . . . Max Gunslinging Chain 1 | . 1 . . . Shots Hit Robots 49 | . 30 13 1 5 Core Hits 58 | . 15 27 1 15 Critical Kills 1 | . 1 . . . Critical Parts Destroyed 2 | . 1 1 . . Critical Strikes 3 | . 2 1 . . Destroy 3 | . 2 1 . . Melee Attacks . | . . . . . Impact . | . . . . . Slashing . | . . . . . Piercing . | . . . . . Sneak Attacks . | . . . . . Combat Hostiles . | . . . . . Follow-up Attacks . | . . . . . Damage Inflicted 2944 | . 284 1803 166 691 Guns 351 | . 284 67 . . Cannons . | . . . . . Explosions 2587 | . . 1736 166 685 Melee . | . . . . . Ramming 6 | . . . . 6 Kinetic 351 | . 284 67 . . Thermal . | . . . . . Explosive 2587 | . . 1736 166 685 Electromagnetic . | . . . . . Impact . | . . . . . Slashing . | . . . . . Piercing . | . . . . . Highest Corruption 1 | . . . . 1 Average Corruption 1 | . . . . 1 Corruption Purged . | . . . . . Corruption Blocked . | . . . . . Overload Shots . | . . . . . Overflow Damage 229 | . . 149 22 58 Projectiles . | . . . . . Explosions 229 | . . 149 22 58 Melee . | . . . . . Knockbacks . | . . . . . Impact . | . . . . . Kinetic . | . . . . . Secondary . | . . . . . Self-Inflicted Damage 384 | . . 204 6 174 Shots 13 | . . 6 1 6 Rammed 2 | . . . . 2 Targets Rammed 2 | . . . . 2 Kicked . | . . . . . Crushed . | . . . . . Highest Temperature 18 | . 8 18 . 2 Average Temperature 5 | . 4 10 . 2 Received Heat Transfer 216 | . 12 132 . 72 Siege Activations . | . . . . . Robots Corrupted . | . . . . . Combat Hostiles . | . . . . . Parts Fried . | . . . . . Impact Corruptions . | . . . . . Robots Melted . | . . . . . Combat Hostiles . | . . . . . Parts Melted . | . . . . . Heat Transferred . | . . . . . Parts Sabotaged . | . . . . . Parts Stolen . | . . . . . Parts Stripped . | . . . . . Power Chain Reactions . | . . . . . Alert | -11 -10 -9 -9 -8 ------- Run | Yrd Mat Mat Min Mat Peak Influence 730 | . 179 730 285 392 Initial 206 | . . 20 206 111 Average 266 | . 65 435 236 253 Maximum Alert Level 3 | . . 3 1 1 Low Security (%) 48 | 100 100 21 . 22 Level 1 20 | . . 9 100 77 Level 2 30 | . . 68 . . Level 3 . | . . . . . Level 4 . | . . . . . Level 5 . | . . . . . High Security . | . . . . . Max Security . | . . . . . Squads Dispatched 7 | . 2 1 . 4 Investigation 1 | . . 1 . . Extermination . | . . . . . Reinforcement 6 | . 2 . . 4 Assault . | . . . . . Garrison . | . . . . . Intercept . | . . . . . Searches Triggered . | . . . . . Construction Impeded . | . . . . . Haulers Reinforced . | . . . . . Active Scanning Responses . | . . . . . Cargo Convoy Interrupts . | . . . . . Stealth | -11 -10 -9 -9 -8 --------- Run | Yrd Mat Mat Min Mat Distress Signals 4 | . 2 . . 2 Communications Jammed . | . . . . . Distress Signals . | . . . . . Times Spotted 55 | . 11 28 3 13 Peak Tracking Total 8 | . 4 8 3 8 Tactical Retreats 3 | . 1 2 . . Traps | -11 -10 -9 -9 -8 ------- Run | Yrd Mat Mat Min Mat Traps Triggered 2 | . 1 1 . . Indirectly . | . . . . . Trap Hack Attempts . | . . . . . Triggered . | . . . . . Disarmed . | . . . . . Reprogrammed . | . . . . . Reused . | . . . . . Traps Extracted . | . . . . . Installed . | . . . . . Triggered . | . . . . . Machines | -11 -10 -9 -9 -8 ---------- Run | Yrd Mat Mat Min Mat Machines Disabled 12 | . . 6 . 6 Max in Single Turn 2 | . . 1 . 2 Machines Repaired . | . . . . . Machines Dismantled . | . . . . . Machines Sabotaged . | . . . . . Overloaded Fab Kills . | . . . . . Hacking | -11 -10 -9 -9 -8 --------- Run | Yrd Mat Mat Min Mat Machines Accessed 5 | . 3 2 . . Terminals 5 | . 3 2 . . Fabricators . | . . . . . Repair Stations . | . . . . . Recycling Units . | . . . . . Scanalyzers . | . . . . . Garrison Access . | . . . . . Total Hacks 19 | . 11 8 . . Successful 9 | . 6 3 . . Failed 10 | . 5 5 . . Catastrophic 1 | . . 1 . . Database Lockouts . | . . . . . Manual . | . . . . . Terminals 19 | . 11 8 . . Fabricators . | . . . . . Repair Stations . | . . . . . Recycling Units . | . . . . . Scanalyzers . | . . . . . Garrison Access . | . . . . . Terminal Hacks 9 | . 6 3 . . Prototype ID Bank 1 | . . 1 . . Alert Level 1 | . 1 . . . Unreport Threat 1 | . 1 . . . Locate Traps 3 | . 2 1 . . Registered Prototypes 1 | . 1 . . . Zone Layout 2 | . 1 1 . . Fabricator Hacks . | . . . . . Repair Station Hacks . | . . . . . Recycling Unit Hacks . | . . . . . Scanalyzer . | . . . . . Garrison Access Hacks . | . . . . . Unauthorized Hacks . | . . . . . Terminals . | . . . . . Fabricators . | . . . . . Repair Stations . | . . . . . Recycling Units . | . . . . . Scanalyzers . | . . . . . Garrison Access . | . . . . . Data Cores Recovered . | . . . . . Used . | . . . . . Hacking Detections 4 | . 2 2 . . Full Trace Events 1 | . 1 . . . Feedback Events . | . . . . . Feedback Blocked . | . . . . . Robot Schematics Acquired . | . . . . . Robots Built . | . . . . . Authchips . | . . . . . Time . | . . . . . Total Robot Build Rating . | . . . . . Part Schematics Acquired . | . . . . . Parts Built . | . . . . . Authchips . | . . . . . Time . | . . . . . Total Part Build Rating . | . . . . . Parts Repaired . | . . . . . Time . | . . . . . Parts Recycled . | . . . . . Recycled Matter . | . . . . . Retrieved Matter . | . . . . . Retrieved Components . | . . . . . Parts Scanalyzed . | . . . . . Part Schematics Acquired . | . . . . . Parts Damaged . | . . . . . Bothacking | -11 -10 -9 -9 -8 ------------ Run | Yrd Mat Mat Min Mat Used RIF Installer . | . . . . . Robots Hacked . | . . . . . Non-combat . | . . . . . Combat . | . . . . . Robot Hacks Applied . | . . . . . Relay Couplers Released . | . . . . . Fabnet Peak Effective % . | . . . . . Robots Rewired . | . . . . . Allies Hacked . | . . . . . Hacks Repelled . | . . . . . Allies | -11 -10 -9 -9 -8 -------- Run | Yrd Mat Mat Min Mat Total Allies . | . . . . . Largest Group . | . . . . . Highest-Rated Group . | . . . . . Highest-Rated Ally . | . . . . . Total Orders . | . . . . . Ally Attacks . | . . . . . Total Damage . | . . . . . Kills . | . . . . . Allies Corrupted . | . . . . . Allies Melted . | . . . . . Intel | -11 -10 -9 -9 -8 ------- Run | Yrd Mat Mat Min Mat Robot Analysis Total . | . . . . . Derelict Logs Recovered . | . . . . . Drone Launches . | . . . . . Drone Recoveries . | . . . . . Exploration | -11 -10 -9 -9 -8 ------------- Run | Yrd Mat Mat Min Mat Turns Passed 946 | 58 269 426 21 172 Spaces Moved 1363 | 55 327 570 45 366 Core 204 | 16 . 152 . 36 Treads . | . . . . . Legs . | . . . . . Wheels 76 | 39 37 . . . Hover . | . . . . . Flight 1083 | . 290 418 45 330 Fastest Speed 31 | 50 37 34 40 31 Average Speed 47 | 83 43 53 40 35 Slowest Speed 200 | 100 200 150 40 110 Overloaded Moves . | . . . . . Propulsion Burnouts . | . . . . . Robots Hopped 9 | . 4 3 1 1 Cave-ins Triggered . | . . . . . Exploration Rate (%) 27 | 3 58 44 7 23 Regions Visited 4 Branch Regions 1 Pre-discovered Areas . | . . . . . Known Exits Taken 2 | . . 1 1 . Unknown Exits Taken 2 | 1 1 . . . Scrap Searched . | . . . . . Spaces Dug . | . . . . . Terrain Destroyed 257 | . . 164 10 83 Melee . | . . . . . Projectile . | . . . . . AOE 257 | . . 164 10 83 Terrain Rammed . | . . . . . Walls Destroyed . | . . . . . Machines Disabled . | . . . . . Actions | -11 -10 -9 -9 -8 --------- Run | Yrd Mat Mat Min Mat Total 1555 | 66 388 658 45 398 Wait 39 | . 1 36 . 2 Move 1341 | 54 318 563 42 364 Hop 9 | . 4 3 1 1 Pick Up 38 | 6 12 12 . 8 Fast Attach . | . . . . . Attach 30 | 6 5 12 1 6 Detach 5 | . 1 3 . 1 Swap 6 | . 4 1 . 1 Drop 12 | . 8 2 . 2 Fire 73 | . 35 26 1 11 Melee . | . . . . . Ram 2 | . . . . 2 Kick . | . . . . . Crush . | . . . . . Escape Stasis . | . . . . . Rewire . | . . . . . Trap . | . . . . . Miscellaneous . | . . . . . Route ------- -11/Scrapyard -10/Materials (discovered 2 exits: *Mat / [*Min]) -9/Materials -9/Mines -8/Materials History --------- Turn | Location | Event 2 | -11/Scrapyard | Met Revision 17 8 | -11/Scrapyard | Discovered new exit (range 15) 59 | -11/Scrapyard | Entered Materials 262 | -10/Materials | Discovered new exit (range 8) 321 | -10/Materials | Discovered new exit (range 12) 328 | -10/Materials | Entered another Materials area 328 | -9/Materials | Evolved 2 slots: Propulsion x1, Utility x1 420 | -9/Materials | Build established: Scavenger-Mutant 481 | -9/Materials | Destroyed 7 combat bots 483 | -9/Materials | Lost 4 parts (1p1n2w) 531 | -9/Materials | Core integrity fell below 50% 561 | -9/Materials | Lost 3 parts (2n1w) 750 | -9/Materials | Discovered new exit (range 7) 754 | -9/Materials | Identified exit to Mines 754 | -9/Materials | Entered Mines 767 | -9/Mines | Discovered new exit (range 6) 773 | -9/Mines | Identified exit to Materials 775 | -9/Mines | Entered Materials 775 | -8/Materials | Evolved 2 slots: Propulsion x1, Utility x1 925 | -8/Materials | Core integrity fell below 50% 939 | -8/Materials | Core integrity fell below 20% 947 | -8/Materials | Destroyed by H-55 Commando with Gauss Rifle Last Messages --------------- 00926_ Acquired Lgt. Nuclear Core. 00929_ Slug penetrates Earth. 00931_ U-05 Engineer lays Concrete. 00933_ The unstable cave ceiling collapses. 00933_ U-05 Engineer lays Concrete. 00935_ Penetrated by Slug. 00935_ U-05 Engineer lays Concrete. 00938_ Mni. Grenade Launcher destroyed. 00938_ Penetrated by Slug. 00939_ ALERT: Suspicious intruders detected, dispatching Cutter reinforcements to area. 00939_ U-05 Engineer lays Concrete. 00943_ Slammed into H-55 Commando. 00943_ Destabilizing: System corrupted (+1). 00944_ U-05 Engineer lays Concrete. 00944_ Signal Interpreter destroyed. 00944_ Slammed into H-55 Commando. 00945_ The unstable cave ceiling collapses. 00945_ U-05 Engineer lays Concrete. 00947_ Penetrated by Slug. Map ----- +----------------------------------------------------+ | ??????# """ """ #" """ #????? | | ???#### """ """ #T """ #????? | | ???# # """ """ #" """ #????? | | ???# # # #????? | | ???# ##+##### ###?????? | | ???# # ###? | | ???# # ## | | ???# ##/##### # | | ???# # T # | | ???# # # " | | ???# # """ #* "" | | ???# ; """ # "" | | ???# # """ # """ | | ???# # # "" | | ???# # """ # """ # | | ???# # """ # """ ## | | ???# # """ # """ ## | | ???# # # " ## | | ???# # # ######## ## | | ??## #! # = #???####+## | | ?## ########?####???# | | ### ###?????????????# | | # ############### """"" | | # # """"" | | # u # " """ | | # @ + "" | | # # "" | | ## !% ###### ###+#### | | ###Yhh####?????#= =[ " | | # = #?????# # " | | # *%[ #?????# "" | | # * #?????#] # "" | | #!% #?????# # "" | | # #?????# ## | | # #?????# ## | | = #?????# ## | | # == #?????# ######## | | ] =#?????#######??????? | | ####??????????????????? | | ##?????????????????????? | | ## #??????????H???????????? | | ?## #??????????????????????? | | ??####??????????????????????? | | ????????????????????????????? | | ????????????????????????????? | | ????????????????????????????? | | ????????????????????????????? | | ????????????????????????????? | | ????????????????????????????? | | ????????????????????????????? | +----------------------------------------------------+ Best States ------------- Heat Dissipation 31 Energy Generation 14 Energy Capacity 140 Matter Stores 272 Matter Capacity 300 Sight Range 20 Robot Scan Range 14 Terrain Scan Density 10 ECM Strength 1 Additional Mass Support 9 Core Shielding 20 Evasion (%) 63 Item Schematics ----------------- None Robot Schematics ------------------ None Fabricated ------------ Nothing Alien Tech Used ----------------- None Achievements -------------- None Challenges ------------ None Game ------ Seed SurgeDamperGun Manual? 0 Play Time 00:35:22 Cumulative 17.8 hours Start 2024.05.25 @ 04:05:51 End 2024.05.25 @ 04:42:43 Sessions 1 Manual Loads 0 Difficulty Rogue Special Mode None Game No. 19 Rogue 19 Adventurer 0 Explorer 0 Win Type - Total 0 Types 0/0/0/0/0/0/0/0/0 Lore% 14 Gallery% 18 Achievement% 14 Wizard Run 0 Options --------- Layout 1 ASCII 0 Keyboard 0 Movement Arrows Keybinds 0 Fullscreen 1 Font 28/TerminusBold Map View 30x25 Zoom Use 99% Tactical HUD 1 Map Filters NONE Filters NONE Steam 1 RUN: 9ad8894b-65b9-47fd-8cae-3985c1811378